{"text_format":"1","workbook":"xlsx","n_sheets":15,"sheets":["1 - Start Page","2 - Intro","3 - Current","4 Gap","5 Prog A","6 Total","7 After","8 Gap","9 Prog B","10 e.g. 1","11 e.g. 1 again","12 e.g. 2","13 Slider","14 Final Page Choice","Source"],"not_rendered":{"charts":17,"images":4,"macros":1,"external_links":0,"defined_names":0,"comments":0,"pivot_tables":0},"unopened":[],"bounds":{"document_bytes":16777216,"sheet_cells":100000,"rows_first":2000,"rows_last":500,"rows_between":2000,"halvings":0,"cell_chars":16384,"cell_head_chars":4096},"cells_cut":0,"cells_raw":0,"read":"whole","date_system":"1900"}

{"sheet":"1 - Start Page","index":0,"n_rows":23,"n_cols":5,"rows_kept":23,"cut":false,"hidden":false,"merged":[[5,16,6,16],[5,9,6,13],[12,4,13,9],[21,4,21,9]]}
[]
[]
[]
[]
[]
[]
[]
[]
[]
[]
[]
[]
[null,null,null,null,"Citizens’ Panel\nQuestionnaire"]
[]
[]
[]
[]
[]
[null,"Thank you for taking the time to complete this questionnaire"]
[]
[]
[null,"Your Name: "]
[null,"Your responses will be treated anonymously and your anonymity carefully protected"]

{"sheet":"2 - Intro","index":1,"n_rows":11,"n_cols":4,"rows_kept":11,"cut":false,"hidden":false,"merged":[[15,1,16,1],[6,1,10,1],[4,2,4,4]]}
[]
[]
[]
[]
[null,null,"INTRODUCTION"]
[]
[null,null,null,"The richest fifth of households in England are people like doctors, lawyers and accountants and their families."]
[]
[null,null,null,"The poorest fifth are people like cleaners, shop assistants, the unemployed and their families."]
[]
[null,null,null,"These two groups are equal in size."]

{"sheet":"3 - Current","index":2,"n_rows":13,"n_cols":7,"rows_kept":13,"cut":false,"hidden":false,"merged":[[15,6,17,6],[4,5,4,7],[6,6,8,6]]}
[]
[]
[]
[]
[null,null,null,null,null,"CURRENT HEALTH"]
[]
[null,null,null,null,null,null,"On average, people in the richest fifth experience 74 years of life in full health."]
[]
[]
[]
[]
[null,null,null,null,null,null,"On average, people in the poorest fifth experience 62 years of life in full health.  "]
[null,null,null,null,null,null,"Someone who has 74 years in full health might for example live to 80 years old, but in less than full health towards the end of their life. "]

{"sheet":"4 Gap","index":3,"n_rows":7,"n_cols":7,"rows_kept":7,"cut":false,"hidden":false,"merged":[[4,5,4,7],[6,6,8,6],[15,6,17,6]]}
[]
[]
[]
[]
[null,null,null,null,null,"GAP IN HEALTH"]
[]
[null,null,null,null,null,null,"On average, the gap in health between the richest fifth and poorest fifth is 12 years of life in full health."]

{"sheet":"5 Prog A","index":4,"n_rows":14,"n_cols":7,"rows_kept":14,"cut":false,"hidden":false,"merged":[[4,5,4,7],[6,6,8,6],[15,6,17,6],[10,6,11,6]]}
[]
[]
[]
[]
[null,null,null,null,null,"PROGRAMME A"]
[]
[null,null,null,null,null,null,"Imagine a large government programme which will improve population health."]
[]
[]
[]
[null,null,null,null,null,null,"On average, people in the richest fifth will gain 7 years of life in full health.  "]
[]
[]
[null,null,null,null,null,null,"On average, people in the poorest fifth will gain 3 years of life in full health.  "]

{"sheet":"6 Total","index":5,"n_rows":7,"n_cols":7,"rows_kept":7,"cut":false,"hidden":false,"merged":[[4,5,4,7],[6,6,8,6],[10,6,11,6],[15,6,17,6]]}
[]
[]
[]
[]
[null,null,null,null,null,"PROGRAMME A"]
[]
[null,null,null,null,null,null,"This programme gives 10 additional years of life in full health \n(+7 years to the rich and +3 years to the poor)."]

{"sheet":"7 After","index":6,"n_rows":9,"n_cols":7,"rows_kept":9,"cut":false,"hidden":false,"merged":[[4,5,4,7],[15,6,17,6],[8,6,9,6]]}
[]
[]
[]
[]
[null,null,null,null,null,"PROGRAMME A"]
[]
[]
[]
[null,null,null,null,null,null,"Total health AFTER the programme is shown below the graph."]

{"sheet":"8 Gap","index":7,"n_rows":7,"n_cols":7,"rows_kept":7,"cut":false,"hidden":false,"merged":[[4,5,4,7],[6,6,8,6],[10,6,11,6],[15,6,17,6]]}
[]
[]
[]
[]
[null,null,null,null,null,"PROGRAMME A"]
[]
[null,null,null,null,null,null,"After this programme, the health gap has grown to 16 years.  (Remember it was 12 years before)."]

{"sheet":"9 Prog B","index":8,"n_rows":18,"n_cols":7,"rows_kept":18,"cut":false,"hidden":false,"merged":[[3,5,3,7],[5,6,7,6],[19,1,22,1],[9,6,12,6],[17,5,19,7]]}
[]
[]
[]
[null,null,null,null,null,"ALTERNATIVE PROGRAMME B"]
[]
[null,null,null,null,null,null,"Now imagine the government is considering alternative Programme B."]
[]
[]
[]
[null,null,null,null,null,null,"In Programme B: \n¨ People in the richest fifth will gain 3 \n     years of life in full health\n\n¨ People in the poorest fifth will gain 8 \n     years of life in full health\n"]
[]
[]
[]
[]
[]
[]
[]
[null,null,null,null,null,"Now let's compare the two programmes"]

{"sheet":"10 e.g. 1","index":9,"n_rows":24,"n_cols":13,"rows_kept":24,"cut":false,"hidden":false,"merged":[[5,2,5,6],[5,12,5,19],[6,12,7,18],[1,2,1,20],[3,11,3,20],[4,12,4,19],[78,22,79,22],[78,23,79,23],[8,12,8,19],[13,26,14,26],[9,12,9,19],[15,26,16,26],[11,12,11,19],[17,26,18,26],[12,12,12,18],[19,11,21,20],[13,12,13,18],[15,12,15,19],[76,22,77,22],[76,23,77,23],[23,7,26,15]]}
[]
[null,null,"Example 1"]
[]
[null,null,null,null,null,null,null,null,null,null,null,"COMPARING THE PROGRAMMES"]
[]
[null,null,null,null,null,null,null,null,null,null,null,null,"Efficiency (Total Gain)"]
[null,null,null,null,null,null,null,null,null,null,null,null,"Programme B is more efficient"]
[]
[null,null,null,null,null,null,null,null,null,null,null,null,"Programme A: Total Gain = 10 years"]
[null,null,null,null,null,null,null,null,null,null,null,null,"Programme B: Total Gain = 11 years"]
[]
[null,null,null,null,null,null,null,null,null,null,null,null,"Inequality (Health Gap)"]
[null,null,null,null,null,null,null,null,null,null,null,null,"Programme B is more equal"]
[null,null,null,null,null,null,null,null,null,null,null,null,"Programme A: Health Gap = 16 years"]
[]
[null,null,null,null,null,null,null,null,null,null,null,null,"Programme B: Health Gap = 7 years"]
[]
[]
[]
[null,null,null,null,null,null,null,null,null,null,null,"Which programme would you choose?\n(Most people choose B)"]
[]
[]
[]
[null,null,null,null,null,null,null,"Now let's see what this choice means in more detail"]

{"sheet":"11 e.g. 1 again","index":10,"n_rows":26,"n_cols":13,"rows_kept":26,"cut":false,"hidden":false,"merged":[[1,2,1,20],[3,11,3,20],[4,12,4,19],[5,2,5,6],[12,25,13,25],[14,25,15,25],[16,25,17,25],[77,21,78,21],[77,22,78,22],[23,11,23,20],[17,12,17,19],[79,21,80,21],[79,22,80,22],[5,12,7,19],[14,12,14,18],[15,12,15,19],[18,12,18,18],[21,12,21,18],[19,12,20,18],[8,12,8,19],[9,12,9,19],[12,12,13,18],[25,9,26,15],[11,12,11,19]]}
[]
[null,null,"Example 1"]
[]
[null,null,null,null,null,null,null,null,null,null,null,"COMPARING THE PROGRAMMES"]
[]
[null,null,null,null,null,null,null,null,null,null,null,null,"Choosing Programme B means 1 more year of total gain and reducing the inequality gap by 9 years (10.7%)"]
[]
[]
[]
[null,null,null,null,null,null,null,null,null,null,null,null,"The poorest fifth gain more in Programme B and the richest fifth gain less"]
[]
[null,null,null,null,null,null,null,null,null,null,null,null,"EFFICIENCY (Total Gain)"]
[null,null,null,null,null,null,null,null,null,null,null,null,"Programme B is more efficient"]
[]
[null,null,null,null,null,null,null,null,null,null,null,null,"Programme A: Total Gain = 10 years"]
[null,null,null,null,null,null,null,null,null,null,null,null,"Programme B: Total Gain = 11 years"]
[]
[null,null,null,null,null,null,null,null,null,null,null,null,"INEQUALITY (Health Gap)"]
[null,null,null,null,null,null,null,null,null,null,null,null,"Programme B is more equal"]
[null,null,null,null,null,null,null,null,null,null,null,null,"Programme A: Health Gap = 16 years"]
[]
[null,null,null,null,null,null,null,null,null,null,null,null,"Programme B: Health Gap = 7 years"]
[]
[]
[]
[null,null,null,null,null,null,null,null,null,"Now let's look at a second example"]

{"sheet":"12 e.g. 2","index":11,"n_rows":24,"n_cols":13,"rows_kept":24,"cut":false,"hidden":false,"merged":[[8,12,8,19],[1,2,1,20],[3,11,3,20],[4,12,4,19],[5,2,5,6],[5,12,7,19],[9,12,9,19],[11,12,11,19],[12,25,13,25],[14,25,15,25],[15,12,15,19],[12,12,12,19],[14,12,14,19],[17,12,17,19],[23,11,23,20],[18,12,18,19],[19,12,20,19],[21,12,21,19],[77,21,78,21],[77,22,78,22],[79,21,80,21],[79,22,80,22],[16,25,17,25]]}
[]
[null,null,"Example 2: Only +6 for the Poor in Programme B"]
[]
[null,null,null,null,null,null,null,null,null,null,null,"COMPARING THE PROGRAMMES"]
[]
[null,null,null,null,null,null,null,null,null,null,null,null,"Choosing Programme B means giving up 1 year of total gain to reduce the inequality gap by 7 years (8.1%)"]
[]
[]
[]
[null,null,null,null,null,null,null,null,null,null,null,null,"The poorest fifth gain more in Programme B and the richest fifth gain less"]
[]
[null,null,null,null,null,null,null,null,null,null,null,null,"EFFICIENCY (Total Gain)"]
[null,null,null,null,null,null,null,null,null,null,null,null,"Programme B is less efficient"]
[]
[null,null,null,null,null,null,null,null,null,null,null,null,"Programme A: Total Gain = 10 years"]
[null,null,null,null,null,null,null,null,null,null,null,null,"Programme B: Total Gain = 9 years"]
[]
[null,null,null,null,null,null,null,null,null,null,null,null,"INEQUALITY (Health Gap)"]
[null,null,null,null,null,null,null,null,null,null,null,null,"Programme B is more equal"]
[null,null,null,null,null,null,null,null,null,null,null,null,"Programme A: Health Gap = 16 years"]
[]
[null,null,null,null,null,null,null,null,null,null,null,null,"Programme B: Health Gap = 9 years"]
[]
[null,null,null,null,null,null,null,null,null,null,null,"Which programme would you choose?"]

{"sheet":"13 Slider","index":12,"n_rows":9,"n_cols":7,"rows_kept":9,"cut":false,"hidden":false,"merged":[[21,6,21,14],[22,6,22,14],[4,5,4,7],[6,4,9,4],[19,6,19,14],[20,6,20,14]]}
[]
[]
[]
[]
[null,null,null,null,null,"PROGRAMME B SLIDER"]
[]
[null,null,null,null,null,null,"The final screen will show a slider next to Programme B."]
[null,null,null,null,null,null,"You can move the slider by dragging it or clicking the arrow keys."]
[null,null,null,null,null,null,"Have a try."]

{"sheet":"14 Final Page Choice","index":13,"n_rows":26,"n_cols":13,"rows_kept":26,"cut":false,"hidden":false,"merged":[[1,4,1,15],[17,25,18,25],[19,25,20,25],[12,12,12,18],[17,12,17,18],[16,12,16,17],[21,25,22,25],[79,21,80,21],[79,22,80,22],[81,21,82,21],[81,22,82,22],[27,7,29,14],[3,2,3,19],[4,2,4,19],[5,2,5,19],[21,12,22,18],[23,12,23,17],[25,12,25,18],[15,12,15,18],[7,11,7,19],[9,12,11,18],[8,12,8,18],[18,12,18,18],[13,12,13,18],[20,12,20,18],[9,2,9,6]]}
[]
[null,null,null,null,"Now it's time to make your choice"]
[]
[null,null,"1. Starting at the top, move the slider down"]
[null,null,"2. Stop when both programmes are equally good"]
[null,null,"3. Once you reach that point, press the \"DONE\" button on the bottom right to record your response"]
[]
[null,null,null,null,null,null,null,null,null,null,null,"COMPARING THE PROGRAMMES"]
[]
[null,null,null,null,null,null,null,null,null,null,null,null,{"$f":"IF(Source!O40>0, \"Choosing Programme B means \"&Source!R16&\" more year(s) of total gain and reducing the inequality gap by \"&Source!P12&\" years (\"&Source!Q33&\"%\"&\")\", IF(Source!O40=0, \"Choosing Programme B means getting the same number of years but reducing the inequality gap by \"&Source!P12&\" years (\"&Source!Q33&\"%\"&\")\", IF(Source!O40<0,\"Choosing Programme B means giving up \"&Source!R17&\" years of total gain to reduce the inequality gap by \"&Source!P12&\" years (\"&Source!Q33&\"%\"&\")\")))","v":"Choosing Programme B means 1 more year(s) of total gain and reducing the inequality gap by 9 years (10.7%)"}]
[]
[]
[]
[null,null,null,null,null,null,null,null,null,null,null,null,{"$f":"IF(Source!N43>0, \"The poorest fifth gain more in Programme B and the richest fifth gain less\", IF(Source!N43=0, \"The poorest fifth gain the same in both Programmes A and B but the richest fifth gain more in Programme A\", IF(Source!O40<0,\"The poorest fifth and richest fifth both gain less in Programme B\")))","v":"The poorest fifth gain more in Programme B and the richest fifth gain less"}]
[]
[null,null,null,null,null,null,null,null,null,null,null,null,"EFFICIENCY (Total Gain)"]
[null,null,null,null,null,null,null,null,null,null,null,null,{"$f":"IF(Source!O38>Source!O39,\"Programme B is less efficient\",IF(Source!O38=Source!O39,\"Programmes A and B are equally efficient\",IF(Source!O38<Source!O39,\"Programmes B is more efficient\")))","v":"Programmes B is more efficient"}]
[null,null,null,null,null,null,null,null,null,null,null,null,{"$f":"\"Programme A: Total Gain = \"&Source!O38&\" years\"","v":"Programme A: Total Gain = 10 years"}]
[null,null,null,null,null,null,null,null,null,null,null,null,{"$f":"\"Programme B: Total Gain = \"&Source!O39&\" years\"","v":"Programme B: Total Gain = 11 years"}]
[]
[null,null,null,null,null,null,null,null,null,null,null,null,"INEQUALITY (Health Gap)"]
[null,null,null,null,null,null,null,null,null,null,null,null,"Programme B is more equal"]
[]
[null,null,null,null,null,null,null,null,null,null,null,null,{"$f":"\"Programme A: Health Gap = \"&Source!J12&\" years\"","v":"Programme A: Health Gap = 16 years"}]
[]
[null,null,null,null,null,null,null,null,null,null,null,null,{"$f":"\"Programme B: Health Gap = \"&Source!N12&\" years\"","v":"Programme B: Health Gap = 7 years"}]

{"sheet":"Source","index":14,"n_rows":44,"n_cols":28,"rows_kept":44,"cut":false,"hidden":true,"merged":[[39,16,40,16],[39,17,40,17],[35,1,35,12],[38,3,39,4],[40,3,41,4],[39,13,40,13],[39,14,40,14]]}
[]
["Slider 1"]
[null,null,null,null,null,null,"Sheet 3",null,null,null,null,null,null,null,null,null,"Richest fifth",74,7]
[null,null,"This information in bold would need to be hidden",null,null,null,"Total = 10 years","Total = 11 years",{"$f":"\"Total = \"&SUM(H10:H11)&\" years\"","v":"Total = 11 years"},null,null,null,null,null,null,null,"Poorest fifth",62,3]
[null,{"$f":"#REF!","v":{"$error":"#REF!"}},"Prog A: Gain in life years for the richest fifth",7,null,null,7,null,null,{"$f":"IF((SUM(I15:I16)-SUM(I13:I14))<0,\"Programme B is less efficient\",IF((SUM(I15:I16)-SUM(I13:I14))>0,\"Programme B is more efficient\", IF((SUM(I15:I16)-SUM(I13:I14))=0,\"Programme B is equally efficient\")))","v":"Programme B is more efficient"}]
[null,3,"Prog B: Gain in life years for the poorest fifth",3,null,null,3,null,null,{"$f":"(SUM(I15:I16)-SUM(I13:I14))&\" years\"","v":"1 years"}]
[null,3,"Prog B: Gain in life years for the richest fifth",30,null,null,3]
[null,{"$f":"D8/10","v":5.4},"Prog B: Gain in life years for the poorest fifth",54,null,null,8,null,null,{"$f":"IF(L17<0,\"Programme B is less equal\",IF(L17>0,\"Programme B is more equal\", IF(L17=0,\"Programme B has no impact on equality\")))","v":"Programme B is more equal"}]
[null,{"$f":"SUM(B5:B6)","v":{"$error":"#REF!"}},"Total gain in life years for Programme A",10]
[null,{"$f":"D10/10","v":8.4},"Total gain in life years for Programme B",{"$f":"SUM(D7:D8)","v":84},null,null,null,{"$f":"G7","v":3},null,{"$f":"H14+I14","v":65},null,null,{"$f":"H11+H16","v":70},null,{"$f":"\"Gap = \"&P10&\" years\"","v":"Gap = 7 years"},{"$f":"ROUND(M12,1)","v":7},{"$f":"\"Total gain = +\"&Q13&\" years\"","v":"Total gain = +10 years"}]
[null,null,null,null,null,null,80,{"$f":"G11/10","v":8},null,{"$f":"H13+I13","v":81},null,null,{"$f":"H15+I15","v":77},null,{"$f":"\"Gap = \"&P11&\" years\"","v":"Gap = 16 years"},{"$f":"ROUND(J12,2)","v":16},{"$f":"\"Total gain = +\"&Q15&\" years\"","v":"Total gain = +11 years"},null,null,null,null,null,null,null,null,null,null,80]
[null,null,null,null,null,null,null,null,null,{"$f":"J11-J10","v":16},null,null,{"$f":"M11-M10","v":7},{"$f":"ROUND(M12,1)","v":7},null,{"$f":"ROUND(P11-P10,1)","v":9}]
[null,null,null,null,null,null,"Richest fifth",74,7,3,{"$f":"SUM(H13:I13)","v":81},{"$f":"K14/K13","v":0.80246913580246915},3,3,null,{"$f":"\"+\"&I13","v":"+7"},{"$f":"SUM(I13:I14)","v":10}]
[null,null,null,null,null,null,"Poor",62,3,8,{"$f":"SUM(H14:I14)","v":65},null,6,3,null,{"$f":"\"+\"&I14","v":"+3"}]
[null,null,null,null,null,null,"Rich",74,3,null,77,{"$f":"K16/K15","v":0.90909090909090906},null,{"$f":"I15","v":3},null,{"$f":"\"+\"&N15","v":"+3"},{"$f":"SUM(N15:N16)","v":11},{"$f":"Q15-Q13","v":1}]
[null,null,null,null,null,null,"Poor",62,{"$f":"J16/10","v":8},{"$f":"G11","v":80},70,null,null,{"$f":"H11","v":8},null,{"$f":"\"+\"&N16","v":"+8"},null,{"$f":"ROUND(R15,1)","v":1}]
[null,null,null,null,null,null,null,null,null,null,null,{"$f":"L15-L13","v":0.10662177328843991},null,null,null,null,null,{"$f":"-ROUND(R15,1)","v":-1}]
[null,null,null,null,null,null,null,null,null,null,null,null,null,null,null,{"$f":"\"+\"&N15","v":"+3"}]
[null,null,null,null,null,null,null,null,null,null,null,null,null,null,null,{"$f":"\"+8\"","v":"+8"},{"$f":"\"+6\"","v":"+6"}]
[null,null,null,null,null,"Gain chart","Slider",null,null,"Text box",null,null,{"$f":"K16&\" years\"","v":"70 years"},null,{"$f":"\"Total gain = +11 years\"","v":"Total gain = +11 years"},null,{"$f":"\"Gap = 7 years\"","v":"Gap = 7 years"}]
[null,null,null,null,null,"Full chart","Slider",80,{"$f":"H21/10","v":8},"Text box",null,null,{"$f":"K16&\" years\"","v":"70 years"},null,{"$f":"\"Total gain = +9 years\"","v":"Total gain = +9 years"},null,{"$f":"\"Gap = 9 years\"","v":"Gap = 9 years"}]
[]
[null,null,{"$f":"IF(Source!O40>0, \"You are willing to give up \"&Source!R16&\" year(s) of total gain to benefit the rich more than the poor\", IF(Source!O40=0, \"You prefer to benefit the rich more than the poor if the total gain in both programmes is the same\", IF(Source!O40<0,\"You are not willing to give up \"&Source!R17&\" years of total gain to reduce the inequality gap by \"&Source!P12&\" years (\"&Source!Q33&\"%\"&\")\")))","v":"You are willing to give up 1 year(s) of total gain to benefit the rich more than the poor"}]
[]
[null,0.16600000000000001,null,null,null,null,null,null,null,null,null,null,null,null,null,null,null,null,null,null,"Are you sure that both programmes are equally good?"]
[null,null,null,null,null,null,null,null,null,null,null,null,null,null,null,null,null,null,null,null,"(if you want, you can move this box to see the screen behind)"]
[]
[null,"Pair 4B:"]
[null,77,null,null,null,null,null,null,null,null,null,null,null,null,null,"Gap percentage"]
[null,65,null,null,null,null,null,null,null,null,null,null,null,null,null,null,{"$f":"J10/J11","v":0.80246913580246915}]
[null,0.184,null,null,null,null,null,null,null,null,null,null,null,null,null,null,{"$f":"M10/M11","v":0.90909090909090906}]
[null,null,null,null,null,null,null,null,null,null,null,null,null,null,null,null,{"$f":"Q31-Q30","v":0.10662177328843991}]
[null,null,null,null,null,null,null,null,null,null,null,null,null,null,null,null,{"$f":"ROUNDUP(Q32*100,1)","v":10.7}]
[null,"Equality: Difference in health of the poor as a percentage of health of the rich"]
[]
[null,"Using this information, we would like you to think how far you would go to have more equality at the cost of losing efficiency."]
[]
[null,null,null,null,null,null,"Before","After","Gain",null,null,null,null,{"$f":"\"Efficiency A: total years\"","v":"Efficiency A: total years"},{"$f":"SUM(Source!I39:I40)","v":10},null,{"$f":"\"Equality A: % health of the poor\"","v":"Equality A: % health of the poor"},{"$f":"Source!H40/Source!H39","v":0.80246913580246915}]
[null,null,null,"Programme A",null,"Rich",74,{"$f":"G39+I39","v":81},7,null,null,null,null,{"$f":"\"Efficiency B: total years\"","v":"Efficiency B: total years"},{"$f":"SUM(Source!I41:I42)","v":11},null,{"$f":"\"Equality B: % health of the poor\"","v":"Equality B: % health of the poor"},{"$f":"Source!H42/Source!H41","v":0.90909090909090906}]
[null,null,null,null,null,"Poor",62,{"$f":"G40+I40","v":65},3,null,null,null,null,{"$f":"\"Efficiency difference (B - A)\"","v":"Efficiency difference (B - A)"},{"$f":"O39-O38","v":1},null,"Equality difference \n(B - A)",{"$f":"R39-R38","v":0.10662177328843991}]
[null,null,null,"Programme B",null,"Rich",74,{"$f":"G41+I41","v":77},3]
[null,null,null,null,null,"Poor",62,{"$f":"G42+I42","v":70},{"$f":"Source!H11","v":8}]
[null,null,null,null,null,null,null,null,null,null,null,null,null,{"$f":"I42-I40","v":5}]
[null,null,null,null,null,null,null,null,null,null,null,null,null,{"$f":"I41-I39","v":-4}]